fUST/lending_fUST_20251018
["ID","MTS","AMOUNT","RATE_DAILY","PERIOD"]
[391745252,1760767844529,-527.28075803,0.00024657,2]
[391745253,1760767844539,-500.0,0.00024657,2]
[391745254,1760767844548,-459.82987874,0.00024657,2]
[391745255,1760767844558,-500.0,0.00024657,2]
[391745256,1760767844567,-500.0,0.00024657,2]
[391745257,1760767844577,-500.0,0.00024657,2]
[391745258,1760767844586,-500.0,0.00024657,2]
[391745259,1760767844595,-500.0,0.00024657,2]
[391745260,1760767844605,-500.0,0.00024657,2]
[391745261,1760767844614,-494.71522413,0.00024657,2]
[391745262,1760767844623,-500.0,0.00024657,2]
[391745263,1760767844633,-500.0,0.00024657,2]
[391745264,1760767844642,-500.0,0.00024657,2]
[391745265,1760767844652,-500.0,0.00024657,2]
[391745266,1760767844661,-500.0,0.00024657,2]
[391745267,1760767844671,-455.96699792,0.00024657,2]
[391745268,1760767844679,-500.0,0.00024657,2]
[391745269,1760767844689,-591.52030072,0.00024657,2]
[391745270,1760767844698,-500.0,0.00024657,2]
[391745271,1760767844708,-500.0,0.00024657,2]
[391745272,1760767844717,-500.0,0.00024657,2]
[391745273,1760767844726,-500.0,0.00024657,2]
[391745274,1760767844736,-500.0,0.00024657,2]
[391745275,1760767844745,-664.11,0.00024657,2]
[391745276,1760767844754,-500.0,0.00024657,2]
[391745277,1760767844763,-1215.5,0.00024657,2]
[391745278,1760767844772,-1944.3,0.00024657,2]
[391745279,1760767844781,-324.60244771,0.00024657,2]
[391745280,1760767844790,-500.0,0.00024657,2]
[391745281,1760767844799,-500.0,0.00024657,2]
[391745282,1760767844809,-151.0,0.00024657,7]
[391745283,1760767844818,-151.0,0.00024657,7]
[391745284,1760767844827,-500.0,0.00024657,2]
[391745285,1760767844836,-500.0,0.00024657,2]
[391745286,1760767844846,-479.37473311,0.00024657,2]
[391745287,1760767844855,-500.0,0.00024657,2]
[391745288,1760767844865,-905.22,0.00024657,2]
[391745289,1760767844874,-396.58287682,0.00024657,2]
[391745290,1760767844883,-500.0,0.00024657,2]
[391745291,1760767844893,-500.0,0.00024657,2]
[391745292,1760767844903,-500.0,0.00024657,2]
[391745293,1760767844913,-500.0,0.00024657,2]
[391745294,1760767844922,-500.0,0.00024657,2]
[391745295,1760767844931,-500.0,0.00024657,2]
[391745296,1760767844941,-431.52929719,0.00024657,2]
[391745297,1760767844950,-500.0,0.00024657,2]
[391745298,1760767844960,-500.0,0.00024657,2]
[391745299,1760767844969,-515.89371218,0.00024657,2]
[391745300,1760767844979,-438.70080361,0.00024657,2]
[391745301,1760767844988,-500.0,0.00024657,2]
[391745302,1760767844997,-500.0,0.00024657,2]
[391745303,1760767845007,-500.0,0.00024657,2]
[391745304,1760767845017,-500.0,0.00024657,2]
[391745305,1760767845026,-500.0,0.00024657,2]
[391745306,1760767845036,-500.0,0.00024657,2]
[391745307,1760767845045,-500.0,0.00024657,2]
[391745308,1760767845054,-500.0,0.00024657,2]
[391745309,1760767845064,-500.0,0.00024657,2]
[391745310,1760767845074,-151.0,0.00024657,7]
[391745311,1760767845083,-482.6287978,0.00024657,2]
[391745312,1760767845093,-443.97066858,0.00024657,2]
[391745313,1760767845102,-500.0,0.00024657,2]
[391745314,1760767845112,-500.0,0.00024657,2]
[391745315,1760767845122,-194.52624133,0.00024657,2]
[391745316,1760767845131,-500.0,0.00024657,2]
[391745317,1760767845141,-500.0,0.00024657,2]
[391745318,1760767845151,-500.0,0.00024657,2]
[391745319,1760767845160,-500.0,0.00024657,2]
[391745320,1760767845172,-500.0,0.00024657,2]
[391745321,1760767845183,-151.0,0.00024657,7]
[391745322,1760767845193,-151.0,0.00024657,7]
[391745323,1760767845203,-500.0,0.00024657,2]
[391745324,1760767845213,-500.0,0.00024657,2]
[391745325,1760767845223,-500.0,0.00024657,2]
[391745326,1760767845232,-500.0,0.00024657,2]
[391745327,1760767845242,-500.0,0.00024657,2]
[391745328,1760767845251,-500.0,0.00024657,2]
[391745329,1760767845261,-500.0,0.00024657,2]
[391745330,1760767845270,-445.17698148,0.00024657,2]
[391745331,1760767845279,-500.0,0.00024657,2]
[391745332,1760767845289,-160.0,0.00024657,7]
[391745333,1760767845299,-500.0,0.00024657,2]
[391745334,1760767845309,-500.0,0.00024657,2]
[391745335,1760767845320,-500.0,0.00024657,2]
[391745336,1760767845330,-500.0,0.00024657,2]
[391745337,1760767845339,-500.0,0.00024657,2]
[391745338,1760767845514,-500.0,0.00024657,2]
[391745339,1760767845524,-500.0,0.00024657,2]
[391745340,1760767845534,-500.0,0.00024657,2]
[391745341,1760767845543,-599.31,0.00024657,2]
[391745342,1760767845552,-530.99,0.00024657,2]
[391745343,1760767845561,-500.0,0.00024657,2]
[391745344,1760767845571,-151.0,0.00024657,7]
[391745345,1760767845581,-151.0,0.00024657,7]
[391745346,1760767845590,-151.0,0.00024657,7]
[391745347,1760767845599,-151.0,0.00024657,7]
[391745348,1760767845608,-151.0,0.00024657,7]
[391745349,1760767845617,-151.0,0.00024657,7]
[391745350,1760767845627,-863.08,0.00024657,2]
[391745351,1760767845636,-151.0,0.00024657,7]
[391745352,1760767845645,-151.0,0.00024657,7]
[391745353,1760767845654,-500.0,0.00024657,2]
[391745354,1760767845663,-187.194594,0.00024657,7]
[391745355,1760767845673,-500.0,0.00024657,2]
[391745356,1760767845682,-187.194594,0.00024657,7]
[391745357,1760767845691,-187.194594,0.00024657,7]
[391745358,1760767845700,-187.194594,0.00024657,7]
[391745359,1760767845710,-187.194594,0.00024657,7]
[391745360,1760767845719,-187.194594,0.00024657,7]
[391745361,1760767845728,-187.194594,0.00024657,7]
[391745362,1760767845738,-187.194594,0.00024657,7]
[391745363,1760767845747,-187.194594,0.00024657,7]
[391745364,1760767845756,-187.194594,0.00024657,7]
[391745365,1760767845766,-187.194594,0.00024657,7]
[391745366,1760767845775,-187.194594,0.00024657,7]
[391745367,1760767845784,-187.194594,0.00024657,7]
[391745368,1760767845793,-187.194594,0.00024657,7]
[391745369,1760767845803,-187.194594,0.00024657,7]
[391745370,1760767845812,-187.194594,0.00024657,7]
[391745371,1760767845821,-1464.05,0.00024657,2]
[391745372,1760767845830,-500.0,0.00024657,2]
[391745373,1760767845840,-505.66295865,0.00024657,2]
[391745374,1760767845850,-500.0,0.00024657,2]
[391745375,1760767845859,-155.950724,0.00024657,7]
[391745376,1760767845868,-231.230103,0.00024657,2]
[391745377,1760767845878,-500.0,0.00024657,2]
[391745378,1760767845887,-500.0,0.00024657,2]
[391745379,1760767845897,-500.0,0.00024657,2]
[391745380,1760767845906,-500.0,0.00024657,2]
[391745381,1760767845915,-500.0,0.00024657,2]
[391745382,1760767845925,-500.0,0.00024657,2]
[391745383,1760767845934,-151.0,0.00024657,7]
[391745384,1760767845943,-151.0,0.00024657,7]
[391745385,1760767845952,-151.0,0.00024657,7]
[391745386,1760767845962,-151.0,0.00024657,7]
[391745387,1760767845972,-500.0,0.00024657,2]
[391745388,1760767845982,-151.0,0.00024657,7]
[391745389,1760767845992,-151.0,0.00024657,7]
[391745390,1760767846002,-151.0,0.00024657,7]
[391745391,1760767846012,-151.0,0.00024657,7]
[391745392,1760767846021,-151.0,0.00024657,7]
[391745393,1760767846031,-500.0,0.00024657,2]
[391745394,1760767846040,-259.9060516,0.00024657,2]
[391745395,1760767846050,-1000.0,0.00024657,2]
[391745396,1760767846060,-506.2,0.00024657,2]
[391745397,1760767846069,-500.0,0.00024657,2]
[391745398,1760767846089,-1166.89,0.00024657,2]
[391745399,1760767846100,-500.0,0.00024657,2]
[391745400,1760767846110,-151.0,0.00024657,7]
[391745401,1760767846120,-151.0,0.00024657,7]
[391745402,1760767846131,-151.0,0.00024657,7]
[391745403,1760767846141,-517.79,0.00024657,2]
[391745404,1760767846151,-151.0,0.00024657,7]
[391745405,1760767846160,-151.0,0.00024657,7]
[391745406,1760767846171,-161.212722,0.00024657,7]
[391745407,1760767846181,-151.0,0.00024657,7]
[391745408,1760767846191,-500.0,0.00024657,2]
[391745409,1760767846201,-151.0,0.00024657,7]
[391745410,1760767846211,-151.0,0.00024657,7]
[391745411,1760767846221,-162.339201,0.00024657,7]
[391745412,1760767846231,-500.0,0.00024657,2]
[391745413,1760767846241,-151.0,0.00024657,7]
[391745414,1760767846251,-484.08563972,0.00024657,2]
[391745415,1760767846262,-500.0,0.00024657,2]
[391745416,1760767846272,-151.0,0.00024657,7]
[391745417,1760767846282,-151.0,0.00024657,7]
[391745418,1760767846291,-151.0,0.00024657,7]
[391745420,1760767846301,-375.174632,0.00024657,2]
[391745421,1760767846311,-151.0,0.00024657,7]
[391745422,1760767846322,-151.0,0.00024657,7]
[391745423,1760767846332,-500.0,0.00024657,2]
[391745424,1760767846341,-196.94045717,0.00024657,2]
[391745425,1760767846351,-500.0,0.00024657,2]
[391745426,1760767846361,-642.81394163,0.00024657,2]
[391745427,1760767846371,-505.32763325,0.00024657,2]
[391745428,1760767846381,-277.33119037,0.00024657,2]
[391745429,1760767846390,-1186.42,0.00024657,2]
[391745430,1760767846400,-500.0,0.00024657,2]
[391745431,1760767846413,-500.0,0.00024657,2]
[391745432,1760767846423,-500.0,0.00024657,2]
[391745433,1760767846432,-500.0,0.00024657,2]
[391745434,1760767846442,-151.0,0.00024657,7]
[391745435,1760767846454,-151.0,0.00024657,7]
[391745436,1760767846463,-627.09,0.00024657,2]
[391745437,1760767846473,-500.0,0.00024657,2]
[391745438,1760767846484,-151.0,0.00024657,7]
[391745439,1760767846493,-500.0,0.00024657,2]
[391745440,1760767846502,-151.0,0.00024657,7]
[391745441,1760767846512,-500.0,0.00024657,2]
[391745442,1760767846522,-500.0,0.00024657,2]
[391745443,1760767846538,-500.0,0.00024657,2]
[391745444,1760767846547,-500.0,0.00024657,2]
[391745445,1760767846557,-1360.88,0.00024657,2]
[391745446,1760767846567,-151.0,0.00024657,7]
[391745447,1760767846578,-151.0,0.00024657,7]
[391745448,1760767846588,-151.0,0.00024657,7]
[391745449,1760767846598,-151.0,0.00024657,7]
[391745450,1760767846608,-151.0,0.00024657,7]
[391745451,1760767846617,-151.0,0.00024657,7]
[391745452,1760767846627,-151.0,0.00024657,7]
[391745453,1760767846637,-151.0,0.00024657,7]
[391745454,1760767846647,-340.47180317,0.00024657,2]
[391745455,1760767846656,-151.0,0.00024657,7]
[391745456,1760767846667,-500.0,0.00024657,2]
[391745457,1760767846676,-216.006856,0.00024657,7]
[391745458,1760767846687,-500.0,0.00024657,2]
[391745459,1760767846696,-500.0,0.00024657,2]
[391745460,1760767846705,-151.0,0.00024657,7]
[391745461,1760767846715,-151.0,0.00024657,7]
[391745462,1760767846724,-151.0,0.00024657,7]
[391745463,1760767846734,-151.0,0.00024657,7]
[391745464,1760767846743,-151.0,0.00024657,7]
[391745465,1760767846753,-151.0,0.00024657,7]
[391745466,1760767846763,-151.0,0.00024657,7]
[391745467,1760767846772,-151.0,0.00024657,7]
[391745468,1760767846782,-151.0,0.00024657,7]
[391745469,1760767846791,-175.29422194,0.00024657,7]
[391745470,1760767846800,-500.0,0.00024657,2]
[391745471,1760767846810,-500.0,0.00024657,2]
[391745472,1760767846820,-356.34704006,0.00024657,2]
[391745473,1760767846830,-500.0,0.00024657,2]
[391745474,1760767846840,-151.0,0.00024657,7]
[391745475,1760767846850,-151.0,0.00024657,7]
[391745476,1760767846859,-151.0,0.00024657,7]
[391745477,1760767846869,-649.16095812,0.00024657,2]
[391745478,1760767846879,-151.0,0.00024657,7]
[391745479,1760767846888,-168.539131,0.00024657,7]
[391745480,1760767846898,-500.0,0.00024657,2]
[391745481,1760767846908,-500.0,0.00024657,2]
[391745483,1760767846917,-500.0,0.00024657,2]
[391745484,1760767846927,-500.0,0.00024657,2]
[391745485,1760767846936,-397.71530398,0.00024657,2]
[391745486,1760767846946,-186.685816,0.00024657,7]
[391745487,1760767846955,-186.685816,0.00024657,7]
[391745489,1760767846965,-186.685816,0.00024657,7]
[391745490,1760767846974,-186.685816,0.00024657,7]
[391745491,1760767846984,-186.685816,0.00024657,7]
[391745492,1760767846993,-186.685816,0.00024657,7]
[391745493,1760767847002,-186.685816,0.00024657,7]
[391745494,1760767847012,-186.685816,0.00024657,7]
[391745495,1760767847021,-500.0,0.00024657,2]
[391745496,1760767847030,-186.685816,0.00024657,7]
[391745497,1760767847040,-186.685816,0.00024657,7]
[391745498,1760767847049,-186.685816,0.00024657,7]
[391745499,1760767847058,-186.685816,0.00024657,7]
[391745500,1760767847068,-186.685816,0.00024657,7]
[391745501,1760767847077,-186.685816,0.00024657,7]
[391745502,1760767847086,-186.685816,0.00024657,7]
[391745503,1760767847095,-186.685816,0.00024657,7]
[391745504,1760767847106,-500.0,0.00024657,2]
[391745505,1760767847116,-500.0,0.00024657,2]
[391745506,1760767847126,-151.0,0.00024657,7]
[391745507,1760767847135,-197.55269512,0.00024657,2]
[391745508,1760767850475,-268.2518802,0.000242,2]
[391745509,1760767851986,209.9518799,0.00023661,2]
[391745510,1760767859378,154.49,0.0001921,2]
[391745511,1760767859873,308.98,0.00020124,2]
[391745512,1760767860142,-31.7481198,0.000242,2]
[391745513,1760767860165,-143.08092501,0.000242,2]
[391745514,1760767860285,463.46,0.00021039,2]
[391745515,1760767860705,617.95,0.00021954,2]
[391745516,1760767861213,772.44,0.00022869,2]
[391745517,1760767861783,926.93,0.00023783,2]
[391745519,1760767876751,163.81071793,0.00024142,2]
[391745520,1760767880502,-196.0,0.00024142,2]
[391745521,1760767882173,-319.7481198,0.00024142,2]
[391745522,1760767892039,259.79534734,0.00024141,2]
[391745523,1760767896897,300.0,0.000237,2]
[391745524,1760767904591,-969.16219666,0.00024273,2]
[391745525,1760767907005,2373.99433528,0.00024273,2]
[391745526,1760767910335,300.0,0.000237,2]
[391745527,1760767910527,700.0,0.0002395,2]
[391745528,1760767912536,300.0,0.000242,2]
[391745529,1760767913608,4387.6912714,0.00024273,2]
[391745530,1760767913633,5612.3087286,0.00024273,2]
[391745531,1760767919657,-287.18743924,0.00024285,5]
[391745532,1760767923418,300.0,0.000237,2]
[391745534,1760767928589,300.0,0.000242,2]
[391745535,1760767937407,300.0,0.000237,2]
[391745536,1760767940933,150.0,0.00019213,2]
[391745537,1760767941404,226.39,0.00020128,2]
[391745538,1760767941776,300.0,0.000242,2]
[391745539,1760767941838,339.59,0.00021043,2]
[391745540,1760767942293,452.79,0.00021958,2]
[391745541,1760767942703,565.99,0.00022873,2]
[391745542,1760767943105,679.18,0.00023788,2]
[391745546,1760768008911,1000.01,0.00029041,120]
[391745547,1760768014643,157.0,9.3e-07,2]
[391745548,1760768020858,150.0,0.00019441,2]
[391745549,1760768021787,164.95,0.00020367,2]
[391745550,1760768022235,247.42,0.00021292,2]
[391745551,1760768022755,329.9,0.00022218,2]
[391745552,1760768023164,412.37,0.00023144,2]
[391745553,1760768023630,494.85,0.0002407,2]
[391745554,1760768025232,-557.03,0.0002434,3]
[391745555,1760768025270,-278.52,0.0002434,3]
[391745556,1760768025306,-835.57,0.0002434,3]
[391745557,1760768025341,-427.64269347,0.0002434,2]
[391745558,1760768025456,1000.02,0.00029041,120]
[391745559,1760768026483,3549.128,0.00029041,120]
[391745560,1760768033298,3000.0,0.000242,5]
[391745561,1760768036416,1000.03,0.00029041,120]
[391745570,1760768054618,1000.031,0.00029041,120]
[391745571,1760768067841,417.15472785,0.0002434,2]
[391745572,1760768069530,1004.5,0.00029041,120]
[391745573,1760768118616,150.0,0.00019478,2]
[391745574,1760768119085,150.0,0.00020405,2]
[391745575,1760768119509,179.28,0.00021333,2]
[391745576,1760768120504,239.04,0.0002226,2]
[391745577,1760768120947,298.79,0.00023188,2]
[391745578,1760768121381,358.55,0.00024115,2]
[391745579,1760768124651,-1200.0,0.00024348,2]
[391745580,1760768124684,-300.0,0.00024348,2]
[391745581,1760768124718,-810.0,0.00024348,2]
[391745582,1760768135583,364.0648286,0.00023559,2]
[391745583,1760768155881,173.56135902,0.00024273,2]
[391745584,1760768161548,848.01692206,0.00024273,2]
[391745585,1760768162209,1582.6628902,0.00024273,2]
[391745586,1760768162321,300.0,0.00024348,2]
[391745588,1760768212663,150.0,0.00019589,2]
[391745589,1760768213080,150.0,0.00020521,2]
[391745590,1760768213489,150.0,0.00021454,2]
[391745591,1760768213957,169.0,0.00022387,2]
[391745592,1760768214369,211.25,0.0002332,2]
[391745593,1760768214765,253.5,0.00024253,2]
[391745594,1760768222460,300.0,0.00024348,2]
[391745595,1760768226794,-500.0,0.00024349,2]
[391745596,1760768226828,-500.0,0.00024349,2]
[391745597,1760768226861,-500.0,0.00024349,2]
[391745598,1760768226895,-325.03280754,0.00024349,2]
[391745599,1760768226928,-500.0,0.00024349,2]
[391745600,1760768226963,-500.0,0.00024349,2]
[391745601,1760768226995,-500.0,0.00024349,2]
[391745602,1760768227029,-500.0,0.00024349,2]
[391745603,1760768227241,-271.54183361,0.00024349,2]
[391745604,1760768227280,-482.51078327,0.00024349,2]
[391745605,1760768227317,-159.09467862,0.00024349,2]
[391745606,1760768227356,-201.08756192,0.00024349,2]
[391745607,1760768232831,-121.47467008,0.00024349,2]
[391745608,1760768232867,-373.44358582,0.00024349,2]
[391745609,1760768282461,300.0,0.00024349,2]
[391745610,1760768288200,150.0,0.00019778,2]
[391745611,1760768288619,150.0,0.0002072,2]
[391745612,1760768289023,150.0,0.00021662,2]
[391745613,1760768289476,150.0,0.00022604,2]
[391745614,1760768289893,150.0,0.00023545,2]
[391745615,1760768311598,227.52296528,0.00024349,2]
[391745616,1760768325193,160.0,0.00024287,5]
[391745617,1760768325531,160.0,0.00023255,4]
[391745618,1760768325840,160.0,0.00022223,3]
[391745619,1760768342835,300.0,0.00024349,2]
[391745621,1760768361693,150.0,0.00019719,2]
[391745622,1760768362114,150.0,0.00020658,2]
[391745623,1760768362525,150.0,0.00021597,2]
[391745624,1760768362919,150.0,0.00022536,2]
[391745625,1760768363354,150.0,0.00023475,2]
[391745627,1760768392691,417.15472785,0.00024349,2]
[391745628,1760768402847,300.0,0.00024349,2]
[391745629,1760768406807,-270.13631335,0.00024849,30]
[391745630,1760768406862,-270.13631335,0.00024959,30]
[391745631,1760768406896,-42847.24574062,0.00025,30]
[391745632,1760768406927,-160.0,0.00025,30]
[391745633,1760768406961,-270.13631335,0.00025096,30]
[391745634,1760768407010,-270.13631335,0.00025205,30]
[391745635,1760768407043,-270.13631335,0.00025315,30]
[391745636,1760768407078,-270.13631335,0.00025452,30]
[391745637,1760768407124,-270.13631335,0.00025562,30]
[391745638,1760768407155,-270.13631335,0.00025699,30]
[391745639,1760768407200,-270.13631335,0.00025808,30]
[391745640,1760768407233,-270.13631335,0.00025918,30]
[391745641,1760768407282,-270.13631335,0.00026055,30]
[391745642,1760768407317,-270.13631335,0.00026164,30]
[391745643,1760768407391,-2511.32364,0.00027,30]
[391745644,1760768407446,-160.0,0.00027423,30]
[391745645,1760768407480,-160.0,0.00027492,30]
[391745646,1760768407516,-720.0,0.00027552,30]
[391745647,1760768407606,-315.55,0.00029041,120]
[391745648,1760768407637,-956.00500051,0.00029042,120]
[391745649,1760768407668,-339.0,0.00029056,120]
[391745650,1760768407706,-157.12452363,0.000295,120]
[391745651,1760768407737,-271.0,0.00029586,120]
[391745652,1760768407781,-152.0,0.000299,120]
[391745653,1760768407811,-254061.26473385,0.0003,30]
[391745654,1760768407842,-402.69031254,0.0003,30]
[391745655,1760768407872,-785.81490251,0.0003,60]
[391745656,1760768407901,-183.1820543,0.0003,120]
[391745657,1760768407933,-160.0,0.0003,30]
[391745658,1760768407965,-400.0,0.0003,120]
[391745659,1760768408000,-448.207996,0.0003,60]
[391745660,1760768408035,-270.893039,0.0003,60]
[391745661,1760768408068,-270.893039,0.0003,30]
[391745662,1760768408105,-298.805331,0.0003,60]
[391745663,1760768408141,-298.805331,0.0003,30]
[391745664,1760768408175,-551.27593264,0.00030136,120]
[391745665,1760768408215,-858.81131,0.00030137,120]
[391745666,1760768408248,-200.0,0.00030145,120]
[391745667,1760768408281,-200.0,0.00030145,120]
[391745668,1760768408314,-200.0,0.00030145,120]
[391745669,1760768408347,-269.97571965,0.0003015,120]
[391745670,1760768408388,-864.0,0.00030307,30]
[391745671,1760768408421,-195.658457,0.00030338,60]
[391745672,1760768408463,-270.893039,0.00030461,30]
[391745673,1760768408501,-298.805331,0.00030461,30]
[391745674,1760768408539,-448.207996,0.00030464,60]
[391745675,1760768408580,-270.893039,0.00030464,60]
[391745676,1760768408624,-298.805331,0.00030464,60]
[391745677,1760768408660,-200.0,0.000305,120]
[391745678,1760768408694,-200.0,0.00030548,120]
[391745679,1760768408727,-200.0,0.00030548,120]
[391745680,1760768408759,-200.0,0.00030548,120]
[391745681,1760768408798,-155.0,0.00030795,42]
[391745682,1760768408832,-402.69031254,0.000309,30]
[391745683,1760768408865,-270.893039,0.00030922,30]
[391745684,1760768408899,-298.805331,0.00030922,30]
[391745685,1760768408932,-448.207996,0.00030929,60]
[391745686,1760768408964,-270.893039,0.00030929,60]
[391745687,1760768408997,-298.805331,0.00030929,60]
[391745688,1760768409033,-200.0,0.0003099,120]
[391745689,1760768409065,-271.0,0.00031065,120]
[391745690,1760768409101,-270.893039,0.00031383,30]
[391745691,1760768409133,-298.805331,0.00031383,30]
[391745692,1760768409166,-448.207996,0.00031393,60]
[391745693,1760768409199,-270.893039,0.00031393,60]
[391745694,1760768409235,-298.805331,0.00031393,60]
[391745695,1760768409270,-152.0,0.000314,120]
[391745696,1760768409304,-357.17819981,0.00031506,30]
[391745697,1760768409340,-378.3833,0.000317,120]
[391745698,1760768409376,-916.56794,0.000317,120]
[391745699,1760768409411,-316.56794,0.000317,120]
[391745700,1760768409451,-402.69031254,0.000318,30]
[391745701,1760768409487,-251.10903661,0.00031835,30]
[391745702,1760768409521,-270.893039,0.00031844,30]
[391745703,1760768409559,-298.805331,0.00031844,30]
[391745704,1760768409594,-448.207996,0.00031858,60]
[391745705,1760768409629,-270.893039,0.00031858,60]
[391745706,1760768409664,-298.805331,0.00031858,60]
[391745707,1760768409698,-1300.9377673,0.00031915,60]
[391745708,1760768409899,-160.0,0.00032,120]
[391745709,1760768409935,-402.69031254,0.00032,120]
[391745710,1760768409967,-10456.0,0.00032,30]
[391745711,1760768410000,-400.0,0.00032,120]
[391745712,1760768410035,-200.0,0.00032346,120]
[391745713,1760768410067,-271.0,0.00032618,120]
[391745714,1760768410103,-152.0,0.000328,120]
[391745715,1760768410138,-157.7685,0.00032877,60]
[391745716,1760768410172,-200.0,0.0003289,120]
[391745717,1760768410204,-500.0,0.000329,30]
[391745718,1760768410237,-356.51786613,0.000329,30]
[391745719,1760768410270,-1766.66,0.00032904,60]
[391745720,1760768410301,-13443.6564,0.00033,120]
[391745721,1760768410332,-2044.3522052,0.00033,120]
[391745722,1760768410363,-1000.0,0.00033,60]
[391745723,1760768410396,-1766.66,0.00033004,60]
[391745724,1760768410429,-200.0,0.00033093,120]
[391745725,1760768410461,-1766.66,0.00033104,60]
[391745726,1760768410494,-916.56794,0.000332,120]
[391745727,1760768410528,-166.94723962,0.000332,117]
[391745728,1760768410564,-166.94723962,0.000332,117]
[391745729,1760768410599,-166.94723962,0.000332,117]
[391745730,1760768410633,-1766.66,0.00033204,60]
[391745731,1760768410666,-1766.66,0.00033304,60]
[391745732,1760768410701,-1000.0,0.00033338,30]
[391745733,1760768410733,-200.0,0.00033367,120]
[391745734,1760768410765,-1766.66,0.00033404,60]
[391745735,1760768410800,-200.0,0.00033458,120]
[391745736,1760768410833,-1766.66,0.00033504,60]
[391745737,1760768410867,-1766.66,0.00033604,60]
[391745738,1760768410898,-585.0,0.000337,60]
[391745739,1760768410931,-1766.66,0.00033704,60]
[391745740,1760768410962,-10147.877827,0.00033738,60]
[391745741,1760768410992,-500.0,0.00033762,30]
[391745742,1760768411023,-195.658457,0.00033763,60]
[391745743,1760768411055,-300.0,0.00033774,120]
[391745744,1760768411090,-356.52,0.00033791,60]
[391745745,1760768411120,-195.448511,0.000338,60]
[391745746,1760768411153,-1766.66,0.00033804,60]
[391745747,1760768411183,-500.0,0.00033842,60]
[391745748,1760768411212,-2005.0,0.00033843,60]
[391745749,1760768411243,-2953.0,0.00033843,60]
[391745750,1760768411274,-976.0,0.00033858,60]
[391745751,1760768411305,-155.0,0.00033858,60]
[391745752,1760768411337,-1541.99,0.00033859,60]
[391745753,1760768411368,-1199.38,0.0003386,60]
[391745754,1760768411399,-644.28161848,0.00033861,60]
[391745755,1760768411432,-8035.5362,0.00033864,60]
[391745756,1760768411463,-797.0,0.00033865,120]
[391745757,1760768411494,-178.25747909,0.00033865,60]
[391745758,1760768411524,-361.42,0.00033866,60]
[391745759,1760768411556,-471.65,0.00033866,60]
[391745760,1760768411592,-1000.0,0.00033867,60]
[391745761,1760768411625,-156.0,0.00033867,60]
[391745762,1760768411657,-340.45161269,0.00033868,30]
[391745763,1760768411688,-41347.0,0.00033874,30]
[391745764,1760768411719,-10000.0,0.0003389,60]
[391745765,1760768411748,-10000.0,0.0003389,60]
[391745766,1760768411779,-10000.0,0.0003389,60]
[391745767,1760768411810,-10000.0,0.0003389,60]
[391745768,1760768411843,-10000.0,0.0003389,60]
[391745769,1760768411873,-10000.0,0.0003389,60]
[391745770,1760768411901,-1415.66,0.00033901,60]